[Event "Early-Titled-Tuesday-Blitz-September-12-2023"]
[Site "Chess.com"]
[Date "2023.09.12"]
[Round "10"]
[White "JAN2404"]
[Black "Gazaman_Empire"]
[Result "1-0"]
[WhiteElo "2029"]
[BlackElo "1992"]
[TimeControl "180+1"]
[EndTime "9:55:47 PDT"]
[Termination "JAN2404 won on time"]

1. c4 {[%clk 0:03:00.9]} 1... Nf6 {[%clk 0:02:58.2]} 2. Nf3 {[%clk 0:03:00.3]}
2... d6 {[%clk 0:02:55.9]} 3. g3 {[%clk 0:02:58.6]} 3... Bg4 {[%clk 0:02:49.5]}
4. Bg2 {[%clk 0:02:58.2]} 4... Nc6 {[%clk 0:02:30.3]} 5. d4 {[%clk 0:02:53.5]}
5... g6 {[%clk 0:02:02.8]} 6. O-O {[%clk 0:02:48.7]} 6... Bg7 {[%clk 0:02:02.8]}
7. Qb3 {[%clk 0:02:46.7]} 7... O-O {[%clk 0:02:01.9]} 8. Qxb7 {[%clk 0:02:45.4]}
8... Bxf3 {[%clk 0:01:31.1]} 9. Bxf3 {[%clk 0:02:46.3]} 9... Nxd4 {[%clk
0:01:31.5]} 10. Na3 {[%clk 0:02:34.5]} 10... Nxf3+ {[%clk 0:01:22]} 11. Qxf3
{[%clk 0:02:32.7]} 11... Rb8 {[%clk 0:01:21.2]} 12. Rd1 {[%clk 0:02:24.5]} 12...
c5 {[%clk 0:01:21.4]} 13. Nb5 {[%clk 0:02:06.3]} 13... a6 {[%clk 0:01:19]} 14.
Nc3 {[%clk 0:02:06.1]} 14... Qb6 {[%clk 0:01:02.9]} 15. Rb1 {[%clk 0:01:52.2]}
15... Nd7 {[%clk 0:00:53.5]} 16. Bg5 {[%clk 0:01:46.7]} 16... Ne5 {[%clk
0:00:45]} 17. Qe4 {[%clk 0:01:19]} 17... Rfe8 {[%clk 0:00:30]} 18. Nd5 {[%clk
0:01:16.3]} 18... Qb7 {[%clk 0:00:20.6]} 19. f4 {[%clk 0:00:58.7]} 19... Nc6
{[%clk 0:00:11.4]} 20. f5 {[%clk 0:00:51.5]} 20... gxf5 {[%clk 0:00:06.7]} 21.
Qh4 {[%clk 0:00:35.8]} 21... Bxb2 {[%clk 0:00:06.4]} 22. Rd2 {[%clk 0:00:30.6]}
22... Bd4+ {[%clk 0:00:06.5]} 23. Rxd4 {[%clk 0:00:26.1]} 23... Qxb1+ {[%clk
0:00:06.7]} 24. Kg2 {[%clk 0:00:23.9]} 24... Nxd4 {[%clk 0:00:04.9]} 25. Nxe7+
{[%clk 0:00:19.2]} 25... Rxe7 {[%clk 0:00:04.3]} 26. Bxe7 {[%clk 0:00:18.1]}
26... Qe4+ {[%clk 0:00:04.7]} 27. Kh3 {[%clk 0:00:12.7]} 27... Qxh4+ {[%clk
0:00:01.3]} 28. Kxh4 {[%clk 0:00:11.8]} 1-0

[Event "Early-Titled-Tuesday-Blitz-September-12-2023"]
[Site "Chess.com"]
[Date "2023.09.12"]
[Round "10"]
[White "Duhless"]
[Black "JimDiGrease"]
[Result "1-0"]
[WhiteElo "2992"]
[BlackElo "2868"]
[TimeControl "180+1"]
[EndTime "9:55:48 PDT"]
[Termination "Duhless won on time"]

1. d4 {[%clk 0:03:00.9]} 1... d5 {[%clk 0:02:59.6]} 2. Nf3 {[%clk 0:03:00.8]}
2... Nf6 {[%clk 0:02:58.7]} 3. Bg5 {[%clk 0:03:01.4]} 3... Ne4 {[%clk
0:02:56.1]} 4. Bh4 {[%clk 0:03:01.5]} 4... c5 {[%clk 0:02:53.1]} 5. e3 {[%clk
0:03:01.1]} 5... Nc6 {[%clk 0:02:38.5]} 6. Nbd2 {[%clk 0:03:00]} 6... Bf5 {[%clk
0:02:26.2]} 7. dxc5 {[%clk 0:02:55]} 7... Nxc5 {[%clk 0:02:16.3]} 8. Nd4 {[%clk
0:02:54.7]} 8... Bd7 {[%clk 0:02:13.8]} 9. c4 {[%clk 0:02:52.5]} 9... dxc4
{[%clk 0:01:54]} 10. Nxc4 {[%clk 0:02:39.5]} 10... Be6 {[%clk 0:01:26.5]} 11.
Nxe6 {[%clk 0:02:38.4]} 11... Nxe6 {[%clk 0:01:25.7]} 12. Qb3 {[%clk 0:02:29.6]}
12... Nc5 {[%clk 0:01:20.5]} 13. Qb5 {[%clk 0:02:18.4]} 13... Qd5 {[%clk
0:01:13.6]} 14. Rd1 {[%clk 0:02:12.4]} 14... Qf5 {[%clk 0:00:48]} 15. b4 {[%clk
0:01:59.1]} 15... Nd3+ {[%clk 0:00:48]} 16. Bxd3 {[%clk 0:01:58.8]} 16... Qxb5
{[%clk 0:00:48.9]} 17. Nd6+ {[%clk 0:01:59.6]} 17... exd6 {[%clk 0:00:49.8]} 18.
Bxb5 {[%clk 0:01:59.5]} 18... a6 {[%clk 0:00:47.9]} 19. Ba4 {[%clk 0:01:50.8]}
19... Be7 {[%clk 0:00:36.9]} 20. Bg3 {[%clk 0:01:39.3]} 20... b5 {[%clk
0:00:33.3]} 21. Bb3 {[%clk 0:01:39.2]} 21... Nxb4 {[%clk 0:00:33.9]} 22. Ke2
{[%clk 0:01:38.9]} 22... Rc8 {[%clk 0:00:29]} 23. Bxd6 {[%clk 0:01:29.9]} 23...
Bxd6 {[%clk 0:00:29.9]} 24. Rxd6 {[%clk 0:01:30.1]} 24... Ke7 {[%clk 0:00:09.8]}
25. Rhd1 {[%clk 0:01:28.9]} 25... Rhd8 {[%clk 0:00:10.5]} 26. Rxd8 {[%clk
0:01:28.3]} 26... Rxd8 {[%clk 0:00:11.4]} 27. Rxd8 {[%clk 0:01:28.7]} 27... Kxd8
{[%clk 0:00:12.3]} 28. Bxf7 {[%clk 0:01:29]} 28... Nc6 {[%clk 0:00:11.8]} 29. f4
{[%clk 0:01:23.5]} 29... Ke7 {[%clk 0:00:11.4]} 30. Bg8 {[%clk 0:01:21.3]} 30...
h6 {[%clk 0:00:10.9]} 31. e4 {[%clk 0:01:19]} 31... a5 {[%clk 0:00:11.2]} 32.
Kd3 {[%clk 0:01:14.7]} 32... g5 {[%clk 0:00:10.1]} 33. g3 {[%clk 0:01:14.2]}
33... a4 {[%clk 0:00:06.1]} 34. Bd5 {[%clk 0:00:59.1]} 34... Nb4+ {[%clk
0:00:04.1]} 35. Kd4 {[%clk 0:00:59.8]} 35... gxf4 {[%clk 0:00:03]} 36. gxf4
{[%clk 0:00:59.7]} 36... Na6 {[%clk 0:00:01.6]} 37. Bc6 {[%clk 0:00:30]} 37...
b4 {[%clk 0:00:02]} 38. Bxa4 {[%clk 0:00:29.4]} 1-0

[Event "Early-Titled-Tuesday-Blitz-September-12-2023"]
[Site "Chess.com"]
[Date "2023.09.12"]
[Round "10"]
[White "santosalberto1987"]
[Black "MarijaKuznecova"]
[Result "1/2-1/2"]
[WhiteElo "2538"]
[BlackElo "2419"]
[TimeControl "180+1"]
[EndTime "9:55:51 PDT"]
[Termination "Game drawn by repetition"]

1. e4 {[%clk 0:03:00.9]} 1... c5 {[%clk 0:02:59.7]} 2. Nf3 {[%clk 0:03:00.9]}
2... d6 {[%clk 0:03:00.2]} 3. Bb5+ {[%clk 0:03:00.5]} 3... Bd7 {[%clk
0:02:59.4]} 4. Bxd7+ {[%clk 0:03:00.5]} 4... Qxd7 {[%clk 0:03:00.3]} 5. c4
{[%clk 0:03:01]} 5... Nf6 {[%clk 0:03:00.3]} 6. Nc3 {[%clk 0:03:01]} 6... g6
{[%clk 0:03:00.2]} 7. d4 {[%clk 0:03:01.2]} 7... cxd4 {[%clk 0:03:00.4]} 8. Nxd4
{[%clk 0:03:02.1]} 8... Bg7 {[%clk 0:03:00.6]} 9. f3 {[%clk 0:03:02.3]} 9... O-O
{[%clk 0:03:01]} 10. Be3 {[%clk 0:03:02]} 10... Rc8 {[%clk 0:03:01.2]} 11. b3
{[%clk 0:03:01.7]} 11... Nc6 {[%clk 0:02:56.2]} 12. Rc1 {[%clk 0:02:59.1]} 12...
e6 {[%clk 0:02:48.4]} 13. O-O {[%clk 0:02:34]} 13... d5 {[%clk 0:02:45.3]} 14.
Nxc6 {[%clk 0:02:20.6]} 14... bxc6 {[%clk 0:02:42.6]} 15. e5 {[%clk 0:02:20.6]}
15... Ne8 {[%clk 0:02:42.6]} 16. f4 {[%clk 0:02:20.7]} 16... h5 {[%clk 0:02:37]}
17. Na4 {[%clk 0:02:19.4]} 17... Bf8 {[%clk 0:02:10.9]} 18. Bc5 {[%clk
0:02:13.8]} 18... Bxc5+ {[%clk 0:02:00]} 19. Nxc5 {[%clk 0:02:14.7]} 19... Qe7
{[%clk 0:02:00.4]} 20. Qd4 {[%clk 0:02:12.9]} 20... Nc7 {[%clk 0:01:59]} 21. Rf3
{[%clk 0:01:55.8]} 21... Rd8 {[%clk 0:01:47.7]} 22. Nb7 {[%clk 0:01:41.2]} 22...
Rd7 {[%clk 0:01:41.5]} 23. Nd6 {[%clk 0:01:40]} 23... c5 {[%clk 0:01:28.4]} 24.
Qxc5 {[%clk 0:01:33.3]} 24... Ne8 {[%clk 0:01:27.4]} 25. cxd5 {[%clk 0:01:29.3]}
25... Rc7 {[%clk 0:01:17.4]} 26. Qa3 {[%clk 0:01:17.6]} 26... Rxc1+ {[%clk
0:01:18.3]} 27. Qxc1 {[%clk 0:01:17.7]} 27... Nxd6 {[%clk 0:01:18.6]} 28. exd6
{[%clk 0:01:09.3]} 28... Qxd6 {[%clk 0:01:19.2]} 29. dxe6 {[%clk 0:01:02.6]}
29... Qxe6 {[%clk 0:01:20.1]} 30. f5 {[%clk 0:01:01.7]} 30... Qb6+ {[%clk
0:01:16.7]} 31. Kh1 {[%clk 0:00:58.2]} 31... Re8 {[%clk 0:01:10]} 32. h3 {[%clk
0:00:44.6]} 32... Qa5 {[%clk 0:01:03.8]} 33. b4 {[%clk 0:00:19.4]} 33... Qxb4
{[%clk 0:00:50.1]} 34. Qh6 {[%clk 0:00:19.4]} 34... Qe1+ {[%clk 0:00:31.2]} 35.
Kh2 {[%clk 0:00:19.4]} 35... Qe5+ {[%clk 0:00:31.6]} 36. Kh1 {[%clk 0:00:16.4]}
36... Qe1+ {[%clk 0:00:25.8]} 37. Kh2 {[%clk 0:00:16.7]} 37... Qe5+ {[%clk
0:00:26.7]} 38. Kg1 {[%clk 0:00:17.3]} 38... Qd4+ {[%clk 0:00:23.6]} 39. Kh1
{[%clk 0:00:11.5]} 39... Qa1+ {[%clk 0:00:15.4]} 40. Kh2 {[%clk 0:00:11]} 40...
Qe5+ {[%clk 0:00:16]} 1/2-1/2

[Event "Early-Titled-Tuesday-Blitz-September-12-2023"]
[Site "Chess.com"]
[Date "2023.09.12"]
[Round "10"]
[White "AndreiITrifan"]
[Black "MightyGMpretender"]
[Result "1-0"]
[WhiteElo "2655"]
[BlackElo "2790"]
[TimeControl "180+1"]
[EndTime "9:55:56 PDT"]
[Termination "AndreiITrifan won on time"]

1. Nf3 {[%clk 0:03:00]} 1... Nf6 {[%clk 0:02:58.6]} 2. e3 {[%clk 0:02:59]} 2...
g6 {[%clk 0:02:57.5]} 3. b3 {[%clk 0:02:58.8]} 3... Bg7 {[%clk 0:02:58.1]} 4.
Bb2 {[%clk 0:02:59.7]} 4... O-O {[%clk 0:02:58.6]} 5. Be2 {[%clk 0:02:59.5]}
5... d6 {[%clk 0:02:53.1]} 6. d4 {[%clk 0:02:58.8]} 6... e5 {[%clk 0:02:47.9]}
7. dxe5 {[%clk 0:02:52.2]} 7... Nfd7 {[%clk 0:02:47.9]} 8. O-O {[%clk
0:02:43.2]} 8... Nc6 {[%clk 0:02:47.8]} 9. c4 {[%clk 0:02:41.8]} 9... dxe5
{[%clk 0:02:40]} 10. Nc3 {[%clk 0:02:37.4]} 10... e4 {[%clk 0:02:39.7]} 11. Ne1
{[%clk 0:02:26.6]} 11... f5 {[%clk 0:02:23.7]} 12. g3 {[%clk 0:02:25.8]} 12...
Nde5 {[%clk 0:02:05.2]} 13. Qc2 {[%clk 0:02:23.7]} 13... Nb4 {[%clk 0:02:04]}
14. Qb1 {[%clk 0:02:09.8]} 14... Be6 {[%clk 0:01:56.9]} 15. Ba3 {[%clk
0:02:04.1]} 15... c5 {[%clk 0:01:55.8]} 16. Qb2 {[%clk 0:01:52.2]} 16... a5
{[%clk 0:01:39.2]} 17. Rd1 {[%clk 0:01:49.3]} 17... Qg5 {[%clk 0:01:38.6]} 18.
Qb1 {[%clk 0:01:37]} 18... Rad8 {[%clk 0:01:22.4]} 19. Bxb4 {[%clk 0:01:34.9]}
19... axb4 {[%clk 0:01:22]} 20. Nd5 {[%clk 0:01:35.8]} 20... Rd7 {[%clk
0:01:00.2]} 21. Ng2 {[%clk 0:01:32.2]} 21... Rfd8 {[%clk 0:00:53.6]} 22. Ngf4
{[%clk 0:01:31.4]} 22... Bf7 {[%clk 0:00:54.3]} 23. h4 {[%clk 0:01:27.2]} 23...
Qh6 {[%clk 0:00:54.4]} 24. Nb6 {[%clk 0:01:26.5]} 24... Rxd1 {[%clk 0:00:50.8]}
25. Rxd1 {[%clk 0:01:27.4]} 25... Re8 {[%clk 0:00:38]} 26. Nd7 {[%clk
0:01:19.7]} 26... g5 {[%clk 0:00:25.9]} 27. Nxe5 {[%clk 0:01:14.3]} 27... Bxe5
{[%clk 0:00:23.1]} 28. hxg5 {[%clk 0:01:13.8]} 28... Qxg5 {[%clk 0:00:24]} 29.
Rd7 {[%clk 0:01:07]} 29... h5 {[%clk 0:00:22.9]} 30. Rxf7 {[%clk 0:00:59.7]}
30... h4 {[%clk 0:00:15.9]} 31. Rd7 {[%clk 0:00:42.1]} 31... hxg3 {[%clk
0:00:15.8]} 32. Qf1 {[%clk 0:00:39.5]} 32... gxf2+ {[%clk 0:00:12.6]} 33. Kxf2
{[%clk 0:00:38.2]} 33... Bxf4 {[%clk 0:00:09.3]} 34. exf4 {[%clk 0:00:37.4]}
34... Qxf4+ {[%clk 0:00:08.7]} 35. Kg1 {[%clk 0:00:32.7]} 35... Qe3+ {[%clk
0:00:07.8]} 36. Qf2 {[%clk 0:00:31.4]} 36... Qc1+ {[%clk 0:00:07.8]} 37. Bf1
{[%clk 0:00:22.2]} 37... Qg5+ {[%clk 0:00:05.9]} 38. Bg2 {[%clk 0:00:20.3]}
38... f4 {[%clk 0:00:01.8]} 39. Qd2 {[%clk 0:00:18.8]} 1-0

[Event "Early-Titled-Tuesday-Blitz-September-12-2023"]
[Site "Chess.com"]
[Date "2023.09.12"]
[Round "10"]
[White "CraiggoryC"]
[Black "Pumpkin_in_moonlight"]
[Result "1-0"]
[WhiteElo "2238"]
[BlackElo "2209"]
[TimeControl "180+1"]
[EndTime "9:55:56 PDT"]
[Termination "CraiggoryC won on time"]

1. e4 {[%clk 0:02:58.3]} 1... e5 {[%clk 0:02:59.7]} 2. Nc3 {[%clk 0:02:57.9]}
2... Nf6 {[%clk 0:02:53.7]} 3. g3 {[%clk 0:02:57.3]} 3... Bc5 {[%clk 0:02:47.3]}
4. Bg2 {[%clk 0:02:56.6]} 4... d6 {[%clk 0:02:44.6]} 5. Nge2 {[%clk 0:02:56.9]}
5... Nc6 {[%clk 0:02:38]} 6. O-O {[%clk 0:02:56.2]} 6... h5 {[%clk 0:02:36.9]}
7. h3 {[%clk 0:02:56]} 7... h4 {[%clk 0:02:15.6]} 8. g4 {[%clk 0:02:56]} 8...
Be6 {[%clk 0:02:01.4]} 9. Nd5 {[%clk 0:02:55.6]} 9... Ne7 {[%clk 0:01:20.4]} 10.
Nxf6+ {[%clk 0:02:22.3]} 10... gxf6 {[%clk 0:01:21.3]} 11. d4 {[%clk 0:02:23]}
11... Bb6 {[%clk 0:01:18.6]} 12. c3 {[%clk 0:02:15.7]} 12... c6 {[%clk
0:01:12.9]} 13. f4 {[%clk 0:02:04.2]} 13... Bc4 {[%clk 0:00:51.6]} 14. Be3
{[%clk 0:01:47.7]} 14... Bxe2 {[%clk 0:00:44.3]} 15. Qxe2 {[%clk 0:01:47.5]}
15... exd4 {[%clk 0:00:44.1]} 16. cxd4 {[%clk 0:01:36.1]} 16... d5 {[%clk
0:00:43.7]} 17. e5 {[%clk 0:01:26.8]} 17... f5 {[%clk 0:00:41]} 18. a4 {[%clk
0:00:59.2]} 18... Qd7 {[%clk 0:00:38.6]} 19. a5 {[%clk 0:00:57.5]} 19... Bc7
{[%clk 0:00:34.6]} 20. a6 {[%clk 0:00:52.7]} 20... b6 {[%clk 0:00:32.9]} 21.
Rfc1 {[%clk 0:00:41.1]} 21... O-O-O {[%clk 0:00:26.9]} 22. Ra3 {[%clk
0:00:30.5]} 22... Kb8 {[%clk 0:00:26.7]} 23. Rac3 {[%clk 0:00:29.4]} 23... fxg4
{[%clk 0:00:21.1]} 24. Qxg4 {[%clk 0:00:27.3]} 24... Qxg4 {[%clk 0:00:17.3]} 25.
hxg4 {[%clk 0:00:28.2]} 25... h3 {[%clk 0:00:17.6]} 26. Bf3 {[%clk 0:00:25.1]}
26... h2+ {[%clk 0:00:15.7]} 27. Kh1 {[%clk 0:00:24.5]} 27... Rh3 {[%clk
0:00:11.9]} 28. Bf2 {[%clk 0:00:14]} 28... Rdh8 {[%clk 0:00:08.4]} 29. Bg2
{[%clk 0:00:13.3]} 29... Rxc3 {[%clk 0:00:07.3]} 30. Rxc3 {[%clk 0:00:12.7]}
30... Ng6 {[%clk 0:00:04.1]} 31. Bg3 {[%clk 0:00:10.7]} 31... Bd8 {[%clk
0:00:02.4]} 32. f5 {[%clk 0:00:10.6]} 32... Nh4 {[%clk 0:00:01.6]} 33. e6+
{[%clk 0:00:09.3]} 33... Kc8 {[%clk 0:00:01.1]} 34. Rxc6+ {[%clk 0:00:09.2]} 1-0

[Event "Early-Titled-Tuesday-Blitz-September-12-2023"]
[Site "Chess.com"]
[Date "2023.09.12"]
[Round "10"]
[White "C_K_G"]
[Black "AleksandrAleksikov"]
[Result "1-0"]
[WhiteElo "2010"]
[BlackElo "2267"]
[TimeControl "180+1"]
[EndTime "9:55:58 PDT"]
[Termination "C_K_G won on time"]

1. e4 {[%clk 0:03:00.9]} 1... c5 {[%clk 0:02:56.2]} 2. Nf3 {[%clk 0:03:00.4]}
2... d6 {[%clk 0:02:56]} 3. d4 {[%clk 0:03:00.6]} 3... Nf6 {[%clk 0:02:54.9]} 4.
Nc3 {[%clk 0:02:55.7]} 4... cxd4 {[%clk 0:02:53.9]} 5. Nxd4 {[%clk 0:02:55.7]}
5... a6 {[%clk 0:02:54.4]} 6. Be2 {[%clk 0:02:53.5]} 6... e5 {[%clk 0:02:52.9]}
7. Nb3 {[%clk 0:02:53]} 7... Be6 {[%clk 0:02:52.4]} 8. Be3 {[%clk 0:02:52.7]}
8... Be7 {[%clk 0:02:50.7]} 9. O-O {[%clk 0:02:52.6]} 9... O-O {[%clk 0:02:49]}
10. f4 {[%clk 0:02:51.5]} 10... Qc7 {[%clk 0:02:47.2]} 11. f5 {[%clk 0:02:48.5]}
11... Bd7 {[%clk 0:02:47.1]} 12. g4 {[%clk 0:02:39.8]} 12... Bc6 {[%clk
0:02:45.9]} 13. Bf3 {[%clk 0:02:38.5]} 13... h6 {[%clk 0:02:43.9]} 14. h4 {[%clk
0:02:35.2]} 14... Nh7 {[%clk 0:02:35.8]} 15. Qe1 {[%clk 0:02:18.3]} 15... b5
{[%clk 0:02:21.5]} 16. a3 {[%clk 0:02:09.6]} 16... Nd7 {[%clk 0:02:19.6]} 17.
Qg3 {[%clk 0:02:07.1]} 17... f6 {[%clk 0:02:08.9]} 18. Kh2 {[%clk 0:01:51.5]}
18... a5 {[%clk 0:02:05.2]} 19. Rg1 {[%clk 0:01:27.4]} 19... b4 {[%clk
0:02:03.3]} 20. axb4 {[%clk 0:01:15.2]} 20... axb4 {[%clk 0:02:01.7]} 21. Rxa8
{[%clk 0:01:15]} 21... Rxa8 {[%clk 0:02:00.3]} 22. Nd1 {[%clk 0:01:11.9]} 22...
Qb7 {[%clk 0:01:21.1]} 23. Qg2 {[%clk 0:01:08.9]} 23... Nb6 {[%clk 0:01:07.2]}
24. g5 {[%clk 0:01:04.5]} 24... fxg5 {[%clk 0:01:06.2]} 25. hxg5 {[%clk
0:01:04.4]} 25... Bxg5 {[%clk 0:01:05.9]} 26. Bh5 {[%clk 0:00:59.9]} 26... Bxe4
{[%clk 0:00:58]} 27. Qd2 {[%clk 0:00:51]} 27... Rc8 {[%clk 0:00:46.5]} 28. Qxd6
{[%clk 0:00:41.8]} 28... Rxc2+ {[%clk 0:00:43.7]} 29. Bf2 {[%clk 0:00:40.9]}
29... Bf4+ {[%clk 0:00:17.4]} 30. Kh3 {[%clk 0:00:33.4]} 30... Bxf5+ {[%clk
0:00:16]} 31. Bg4 {[%clk 0:00:23.7]} 31... Qf3+ {[%clk 0:00:10.3]} 32. Kh4
{[%clk 0:00:13.3]} 32... Bg5+ {[%clk 0:00:05]} 33. Kh5 {[%clk 0:00:11.6]} 33...
g6+ {[%clk 0:00:02.4]} 34. Qxg6+ {[%clk 0:00:11]} 34... Bxg6+ {[%clk 0:00:01.8]}
35. Kxg6 {[%clk 0:00:11.2]} 1-0

[Event "Early-Titled-Tuesday-Blitz-September-12-2023"]
[Site "Chess.com"]
[Date "2023.09.12"]
[Round "10"]
[White "Mesa_1"]
[Black "secretsuperstar7"]
[Result "0-1"]
[WhiteElo "2595"]
[BlackElo "2448"]
[TimeControl "180+1"]
[EndTime "9:56:03 PDT"]
[Termination "secretsuperstar7 won by checkmate"]

1. e4 {[%clk 0:03:00.3]} 1... c5 {[%clk 0:02:57.3]} 2. Nf3 {[%clk 0:03:00.7]}
2... Nc6 {[%clk 0:02:56.1]} 3. c3 {[%clk 0:03:01.1]} 3... Nf6 {[%clk 0:02:55.4]}
4. e5 {[%clk 0:03:01.7]} 4... Nd5 {[%clk 0:02:55.5]} 5. Bc4 {[%clk 0:03:01.7]}
5... Nb6 {[%clk 0:02:54.5]} 6. Bb3 {[%clk 0:03:02.5]} 6... c4 {[%clk 0:02:55]}
7. Bc2 {[%clk 0:03:02.5]} 7... d5 {[%clk 0:02:55.3]} 8. exd6 {[%clk 0:02:57.7]}
8... Qxd6 {[%clk 0:02:55.2]} 9. O-O {[%clk 0:02:58.5]} 9... g6 {[%clk
0:02:55.6]} 10. b3 {[%clk 0:02:57]} 10... Bg7 {[%clk 0:02:49.9]} 11. Na3 {[%clk
0:02:53.8]} 11... cxb3 {[%clk 0:02:47.7]} 12. Nb5 {[%clk 0:02:47.9]} 12... Qd8
{[%clk 0:02:47.1]} 13. axb3 {[%clk 0:02:47.2]} 13... O-O {[%clk 0:02:45.4]} 14.
Re1 {[%clk 0:02:44.3]} 14... a6 {[%clk 0:02:44.3]} 15. Na3 {[%clk 0:02:44.4]}
15... Nb4 {[%clk 0:02:36.7]} 16. Bb1 {[%clk 0:02:38.2]} 16... N4d5 {[%clk
0:02:25.3]} 17. Bb2 {[%clk 0:02:28.9]} 17... Bg4 {[%clk 0:02:13.1]} 18. h3
{[%clk 0:02:26.8]} 18... Bxf3 {[%clk 0:02:10.8]} 19. Qxf3 {[%clk 0:02:27.7]}
19... Rc8 {[%clk 0:02:08]} 20. Ba2 {[%clk 0:01:49.2]} 20... Qc7 {[%clk
0:01:58.8]} 21. Nc2 {[%clk 0:01:43.3]} 21... a5 {[%clk 0:01:51.2]} 22. Na3
{[%clk 0:01:40.2]} 22... Rfd8 {[%clk 0:01:42.1]} 23. Nc4 {[%clk 0:01:35.1]}
23... Nxc4 {[%clk 0:01:39.3]} 24. bxc4 {[%clk 0:01:36]} 24... Nb6 {[%clk
0:01:39.5]} 25. Ba3 {[%clk 0:01:32.1]} 25... e6 {[%clk 0:01:31.9]} 26. Rab1
{[%clk 0:01:28.6]} 26... Rxd2 {[%clk 0:01:25.8]} 27. Bb3 {[%clk 0:01:22.7]}
27... Rcd8 {[%clk 0:01:15.3]} 28. c5 {[%clk 0:01:18.8]} 28... Nd5 {[%clk
0:01:08.1]} 29. Bxd5 {[%clk 0:01:10.1]} 29... R2xd5 {[%clk 0:01:09]} 30. c4
{[%clk 0:01:08]} 30... Rd3 {[%clk 0:01:06.1]} 31. Re3 {[%clk 0:01:07.8]} 31...
Rxe3 {[%clk 0:00:31.1]} 32. Qxe3 {[%clk 0:01:08.7]} 32... Bd4 {[%clk 0:00:30.9]}
33. Qf3 {[%clk 0:01:03]} 33... Rd7 {[%clk 0:00:24.3]} 34. Rd1 {[%clk 0:00:49.2]}
34... e5 {[%clk 0:00:11]} 35. h4 {[%clk 0:00:38]} 35... e4 {[%clk 0:00:11.1]}
36. Qg4 {[%clk 0:00:19.2]} 36... f5 {[%clk 0:00:08.6]} 37. Qe2 {[%clk 0:00:19]}
37... Qf4 {[%clk 0:00:05.1]} 38. h5 {[%clk 0:00:13]} 38... Bxf2+ {[%clk
0:00:04.8]} 39. Kf1 {[%clk 0:00:12.5]} 39... Rxd1+ {[%clk 0:00:04.8]} 40. Qxd1
{[%clk 0:00:12.6]} 40... Be3+ {[%clk 0:00:05.1]} 41. Ke2 {[%clk 0:00:12.7]}
41... Qf2# {[%clk 0:00:05.4]} 0-1

[Event "Early-Titled-Tuesday-Blitz-September-12-2023"]
[Site "Chess.com"]
[Date "2023.09.12"]
[Round "10"]
[White "Journey_to_GrandMaster_YT"]
[Black "Smiechu"]
[Result "1-0"]
[WhiteElo "2605"]
[BlackElo "2468"]
[TimeControl "180+1"]
[EndTime "9:56:03 PDT"]
[Termination "Journey_to_GrandMaster_YT won by resignation"]

1. Nf3 {[%clk 0:02:59.5]} 1... Nf6 {[%clk 0:02:59.3]} 2. d4 {[%clk 0:02:58.2]}
2... c5 {[%clk 0:02:59.6]} 3. d5 {[%clk 0:02:58.3]} 3... e6 {[%clk 0:02:59.2]}
4. c4 {[%clk 0:02:58.5]} 4... exd5 {[%clk 0:02:58.3]} 5. cxd5 {[%clk 0:02:59.4]}
5... d6 {[%clk 0:02:59]} 6. g3 {[%clk 0:02:57.6]} 6... g6 {[%clk 0:02:59.4]} 7.
Bg2 {[%clk 0:02:58.2]} 7... Bg7 {[%clk 0:03:00]} 8. O-O {[%clk 0:02:58.8]} 8...
O-O {[%clk 0:03:00.6]} 9. Nfd2 {[%clk 0:02:57.6]} 9... Nbd7 {[%clk 0:02:59.6]}
10. a4 {[%clk 0:02:56.2]} 10... a6 {[%clk 0:02:57.5]} 11. Nc4 {[%clk 0:02:55]}
11... Nb6 {[%clk 0:02:54.7]} 12. Nca3 {[%clk 0:02:54.9]} 12... Re8 {[%clk
0:02:54.4]} 13. a5 {[%clk 0:02:50.1]} 13... Nbd7 {[%clk 0:02:54.2]} 14. Nc4
{[%clk 0:02:50.5]} 14... Ne5 {[%clk 0:02:54.4]} 15. Nb6 {[%clk 0:02:51]} 15...
Rb8 {[%clk 0:02:53.1]} 16. h3 {[%clk 0:02:49.3]} 16... Nh5 {[%clk 0:02:49.5]}
17. Kh2 {[%clk 0:02:49.2]} 17... Nd7 {[%clk 0:02:37.8]} 18. Nc4 {[%clk
0:02:47.1]} 18... Ne5 {[%clk 0:02:38]} 19. Nb6 {[%clk 0:02:47.5]} 19... Nd7
{[%clk 0:02:38.1]} 20. Nxc8 {[%clk 0:02:47.7]} 20... Rxc8 {[%clk 0:02:36.6]} 21.
Nc3 {[%clk 0:02:46.4]} 21... f5 {[%clk 0:02:32.8]} 22. Qb3 {[%clk 0:02:41.1]}
22... f4 {[%clk 0:02:29.2]} 23. g4 {[%clk 0:02:37.8]} 23... Be5 {[%clk
0:02:16.2]} 24. Bf3 {[%clk 0:02:25.8]} 24... Ng7 {[%clk 0:02:04.7]} 25. Qxb7
{[%clk 0:02:20.7]} 25... Nf6 {[%clk 0:01:55.3]} 26. Qxa6 {[%clk 0:02:19.1]}
26... h5 {[%clk 0:01:50.6]} 27. g5 {[%clk 0:02:16.1]} 27... Ng4+ {[%clk
0:01:46.5]} 28. hxg4 {[%clk 0:02:06.2]} 28... hxg4 {[%clk 0:01:43]} 29. Bxg4
{[%clk 0:02:05.6]} 29... Qxg5 {[%clk 0:01:40.2]} 30. f3 {[%clk 0:02:02.4]} 30...
Qh4+ {[%clk 0:01:37.2]} 31. Kg2 {[%clk 0:01:37.6]} 31... Qg3+ {[%clk 0:01:36.8]}
32. Kh1 {[%clk 0:01:32.9]} 32... Bxc3 {[%clk 0:01:08.5]} 33. bxc3 {[%clk
0:01:18.3]} 33... Kf7 {[%clk 0:01:03.6]} 34. Qb7+ {[%clk 0:00:49.9]} 34... Kf6
{[%clk 0:01:02.8]} 35. Qxc8 {[%clk 0:00:38.4]} 35... Rxc8 {[%clk 0:01:02.5]} 36.
Bxc8 {[%clk 0:00:39.3]} 36... Qh4+ {[%clk 0:00:49.9]} 37. Kg2 {[%clk 0:00:38.2]}
37... Qg3+ {[%clk 0:00:46.3]} 38. Kh1 {[%clk 0:00:38.3]} 38... Nh5 {[%clk
0:00:36.9]} 39. Rg1 {[%clk 0:00:21.4]} 39... Qh4+ {[%clk 0:00:35.9]} 40. Kg2
{[%clk 0:00:21.4]} 40... Ng3 {[%clk 0:00:36.1]} 41. Bg4 {[%clk 0:00:16.7]} 41...
Nxe2 {[%clk 0:00:31.3]} 42. Rh1 {[%clk 0:00:15.3]} 42... Qg3+ {[%clk 0:00:28.3]}
43. Kf1 {[%clk 0:00:15.7]} 43... Nxc3 {[%clk 0:00:25.9]} 44. Bb2 {[%clk
0:00:14.9]} 1-0